[Event "Titled Tuesday Blitz January 03 Late 2023"]
[White "Tanenbaum, Zachary"]
[Black "Sargsyan, Anna M."]
[WhiteFideId "2060850"]
[BlackFideId "13308130"]
[WhiteElo "2261"]
[BlackElo "2375"]
[Result "1-0"]
[Round "07"]
[TimeControl "180+2"]
[Date "2023.01.03"]
[WhiteClock "0:00:32"]
[BlackClock "0:00:05"]

1. e4 {[%clk 0:03:00]}  c6 {[%clk 0:02:57]} 2. d4 {[%clk 0:03:00]}  d5 {[%clk 0:02:57]} 3. exd5 {[%clk 0:03:01]}  cxd5 {[%clk 0:02:56]} 4. Bd3 {[%clk 0:03:02]}  Nc6 {[%clk 0:02:55]} 5. c3 {[%clk 0:03:02]}  Nf6 {[%clk 0:02:56]} 6. Bf4 {[%clk 0:03:02]}  g6 {[%clk 0:02:55]} 7. Nf3 {[%clk 0:03:02]}  Bg7 {[%clk 0:02:55]} 8. O-O {[%clk 0:03:02]}  O-O {[%clk 0:02:56]} 9. Nbd2 {[%clk 0:03:02]}  Nh5 {[%clk 0:02:56]} 10. Bg5 {[%clk 0:02:44]}  f5 {[%clk 0:02:38]} 11. Re1 {[%clk 0:02:27]}  h6 {[%clk 0:02:37]} 12. Bh4 {[%clk 0:02:19]}  g5 {[%clk 0:02:21]} 13. Bg3 {[%clk 0:02:19]}  g4 {[%clk 0:02:11]} 14. Ne5 {[%clk 0:02:07]}  f4 {[%clk 0:01:26]} 15. Nxc6 {[%clk 0:02:03]}  bxc6 {[%clk 0:01:19]} 16. Bh4 {[%clk 0:02:03]}  Nf6 {[%clk 0:01:13]} 17. Nb3 {[%clk 0:01:56]}  Qd6 {[%clk 0:01:07]} 18. Nc5 {[%clk 0:01:54]}  a5 {[%clk 0:00:46]} 19. Qe2 {[%clk 0:01:41]}  Ra7 {[%clk 0:00:46]} 20. Bc2 {[%clk 0:01:30]}  f3 {[%clk 0:00:45]} 21. Qd3 {[%clk 0:01:28]}  fxg2 {[%clk 0:00:39]} 22. Bg3 {[%clk 0:01:21]}  Qd8 {[%clk 0:00:32]} 23. Bb8 {[%clk 0:00:49]}  Ra8 {[%clk 0:00:32]} 24. Be5 {[%clk 0:00:50]}  Qe8 {[%clk 0:00:16]} 25. Kxg2 {[%clk 0:00:49]}  Qh5 {[%clk 0:00:15]} 26. Kh1 {[%clk 0:00:49]}  Ne4 {[%clk 0:00:07]} 27. Nxe4 {[%clk 0:00:45]}  dxe4 {[%clk 0:00:07]} 28. Qxe4 {[%clk 0:00:43]}  Bf5 {[%clk 0:00:08]} 29. Bb3+ {[%clk 0:00:43]}  Kh7 {[%clk 0:00:08]} 30. Qxc6 {[%clk 0:00:40]}  a4 {[%clk 0:00:06]} 31. Bxg7 {[%clk 0:00:38]}  Kxg7 {[%clk 0:00:06]} 32. Rxe7+ {[%clk 0:00:38]}  Kh8 {[%clk 0:00:06]} 33. Qd5 {[%clk 0:00:32]}  axb3 {[%clk 0:00:05]} 34. Qe5+ {[%clk 0:00:32]} 1-0


[Site "https://www.chess.com"]

[Event "Titled Tuesday Blitz January 03 Late 2023"]
[White "Martynov, Pavel"]
[Black "Pakleza, Zbigniew"]
[WhiteFideId "4101260"]
[BlackFideId "1119290"]
[WhiteElo "2414"]
[BlackElo "2494"]
[Result "0-1"]
[Round "07"]
[TimeControl "180+2"]
[Date "2023.01.03"]
[WhiteClock "0:00:03"]
[BlackClock "0:00:03"]

1. e4 {[%clk 0:02:53]}  d6 {[%clk 0:03:00]} 2. d4 {[%clk 0:02:53]}  Nf6 {[%clk 0:03:01]} 3. Nc3 {[%clk 0:02:53]}  c6 {[%clk 0:03:01]} 4. Nge2 {[%clk 0:02:53]}  b5 {[%clk 0:03:00]} 5. a3 {[%clk 0:02:53]}  e5 {[%clk 0:03:00]} 6. g3 {[%clk 0:02:53]}  Nbd7 {[%clk 0:03:00]} 7. Bg2 {[%clk 0:02:52]}  Bb7 {[%clk 0:03:00]} 8. O-O {[%clk 0:02:52]}  Be7 {[%clk 0:03:01]} 9. h3 {[%clk 0:02:53]}  a5 {[%clk 0:03:01]} 10. g4 {[%clk 0:02:47]}  b4 {[%clk 0:03:01]} 11. Nb1 {[%clk 0:02:46]}  O-O {[%clk 0:02:57]} 12. Be3 {[%clk 0:02:45]}  exd4 {[%clk 0:02:53]} 13. Nxd4 {[%clk 0:02:38]}  c5 {[%clk 0:02:53]} 14. Nf5 {[%clk 0:02:37]}  Bxe4 {[%clk 0:02:46]} 15. Bxe4 {[%clk 0:02:36]}  Nxe4 {[%clk 0:02:47]} 16. axb4 {[%clk 0:02:36]}  cxb4 {[%clk 0:02:41]} 17. Qf3 {[%clk 0:02:31]}  d5 {[%clk 0:02:02]} 18. Rd1 {[%clk 0:02:16]}  Ne5 {[%clk 0:01:52]} 19. Qg2 {[%clk 0:02:09]}  Re8 {[%clk 0:01:35]} 20. Nd2 {[%clk 0:02:06]}  Nd6 {[%clk 0:01:05]} 21. Nb3 {[%clk 0:01:13]}  Nxf5 {[%clk 0:01:00]} 22. gxf5 {[%clk 0:01:14]}  Qc8 {[%clk 0:00:50]} 23. Nd4 {[%clk 0:01:08]}  Nc4 {[%clk 0:00:43]} 24. Bg5 {[%clk 0:00:34]}  Bxg5 {[%clk 0:00:36]} 25. Qxg5 {[%clk 0:00:34]}  Ra6 {[%clk 0:00:30]} 26. b3 {[%clk 0:00:29]}  Ne5 {[%clk 0:00:27]} 27. f4 {[%clk 0:00:19]}  Nd7 {[%clk 0:00:20]} 28. Re1 {[%clk 0:00:17]}  Nf6 {[%clk 0:00:19]} 29. Re5 {[%clk 0:00:11]}  Rd8 {[%clk 0:00:11]} 30. Rd1 {[%clk 0:00:06]}  Qc3 {[%clk 0:00:08]} 31. Rd3 {[%clk 0:00:05]}  Qc5 {[%clk 0:00:07]} 32. Kh2 {[%clk 0:00:05]}  a4 {[%clk 0:00:07]} 33. Rg3 {[%clk 0:00:05]}  Qf8 {[%clk 0:00:03]} 34. Ne6 {[%clk 0:00:04]}  fxe6 {[%clk 0:00:02]} 35. fxe6 {[%clk 0:00:04]}  Re8 {[%clk 0:00:02]} 36. Rf5 {[%clk 0:00:04]}  Kh8 {[%clk 0:00:02]} 37. Re5 {[%clk 0:00:04]}  Raxe6 {[%clk 0:00:02]} 38. Rxe6 {[%clk 0:00:02]}  Rxe6 {[%clk 0:00:03]} 39. bxa4 {[%clk 0:00:02]}  d4 {[%clk 0:00:02]} 40. Qf5 {[%clk 0:00:03]}  Re8 {[%clk 0:00:03]} 41. Rd3 {[%clk 0:00:03]}  Qe7 {[%clk 0:00:03]} 42. Kg3 {[%clk 0:00:02]}  Qe1+ {[%clk 0:00:02]} 43. Kg2 {[%clk 0:00:02]}  Re2+ {[%clk 0:00:02]} 44. Kf3 {[%clk 0:00:03]}  Qf2# {[%clk 0:00:03]} 0-1


[Site "https://www.chess.com"]

[Event "Titled Tuesday Blitz January 03 Late 2023"]
[White "Kosteniuk, Alexandra"]
[Black "Karttunen, Mika"]
[WhiteFideId "4128125"]
[BlackFideId "502081"]
[WhiteElo "2535"]
[BlackElo "2490"]
[Result "1-0"]
[Round "07"]
[TimeControl "180+2"]
[Date "2023.01.03"]
[WhiteClock "0:00:29"]
[BlackClock "0:00:04"]

1. e4 {[%clk 0:03:00]}  c5 {[%clk 0:02:58]} 2. c3 {[%clk 0:03:00]}  d5 {[%clk 0:02:57]} 3. exd5 {[%clk 0:03:01]}  Qxd5 {[%clk 0:02:58]} 4. d4 {[%clk 0:03:01]}  e6 {[%clk 0:02:57]} 5. Nf3 {[%clk 0:03:01]}  Nf6 {[%clk 0:02:57]} 6. Be2 {[%clk 0:03:00]}  Nc6 {[%clk 0:02:57]} 7. O-O {[%clk 0:02:59]}  cxd4 {[%clk 0:02:57]} 8. cxd4 {[%clk 0:02:59]}  Be7 {[%clk 0:02:58]} 9. Nc3 {[%clk 0:02:59]}  Qd6 {[%clk 0:02:58]} 10. Nb5 {[%clk 0:02:59]}  Qd8 {[%clk 0:02:57]} 11. Bf4 {[%clk 0:02:58]}  Nd5 {[%clk 0:02:57]} 12. Bg3 {[%clk 0:02:58]}  O-O {[%clk 0:02:57]} 13. Rc1 {[%clk 0:02:58]}  a6 {[%clk 0:02:56]} 14. Nc3 {[%clk 0:02:58]}  Bd7 {[%clk 0:02:55]} 15. Ne4 {[%clk 0:02:54]}  Qb6 {[%clk 0:02:49]} 16. Qd2 {[%clk 0:02:23]}  Rac8 {[%clk 0:02:45]} 17. Nd6 {[%clk 0:02:10]}  Rcd8 {[%clk 0:02:42]} 18. Nc4 {[%clk 0:02:09]}  Qa7 {[%clk 0:02:41]} 19. Bd3 {[%clk 0:02:07]}  g6 {[%clk 0:02:36]} 20. Bb1 {[%clk 0:02:04]}  Bf6 {[%clk 0:02:33]} 21. Rfd1 {[%clk 0:02:03]}  Bc8 {[%clk 0:02:28]} 22. h4 {[%clk 0:01:59]}  Nde7 {[%clk 0:02:17]} 23. Nd6 {[%clk 0:01:56]}  Qb6 {[%clk 0:02:11]} 24. h5 {[%clk 0:01:54]}  Qb4 {[%clk 0:02:01]} 25. Qxb4 {[%clk 0:01:28]}  Nxb4 {[%clk 0:02:01]} 26. Nxc8 {[%clk 0:01:27]}  Rxc8 {[%clk 0:01:57]} 27. Bd6 {[%clk 0:01:23]}  Nbc6 {[%clk 0:01:45]} 28. hxg6 {[%clk 0:01:11]}  hxg6 {[%clk 0:01:45]} 29. Ne5 {[%clk 0:01:08]}  Rfd8 {[%clk 0:01:40]} 30. Nxc6 {[%clk 0:01:06]}  Nxc6 {[%clk 0:01:39]} 31. Bc5 {[%clk 0:00:58]}  Nxd4 {[%clk 0:01:32]} 32. Kf1 {[%clk 0:00:57]}  Nc6 {[%clk 0:01:18]} 33. Bb6 {[%clk 0:00:56]}  Rxd1+ {[%clk 0:01:17]} 34. Rxd1 {[%clk 0:00:57]}  Bd4 {[%clk 0:00:57]} 35. Bxd4 {[%clk 0:00:53]}  Nxd4 {[%clk 0:00:57]} 36. Be4 {[%clk 0:00:53]}  Nc6 {[%clk 0:00:45]} 37. Rd7 {[%clk 0:00:52]}  b5 {[%clk 0:00:43]} 38. Rd6 {[%clk 0:00:50]}  Ne5 {[%clk 0:00:07]} 39. Rxa6 {[%clk 0:00:49]}  Rc4 {[%clk 0:00:07]} 40. f3 {[%clk 0:00:45]}  g5 {[%clk 0:00:03]} 41. Rb6 {[%clk 0:00:35]}  Rc5 {[%clk 0:00:02]} 42. b4 {[%clk 0:00:34]}  Rc3 {[%clk 0:00:02]} 43. Rxb5 {[%clk 0:00:33]}  Nc4 {[%clk 0:00:03]} 44. Rxg5+ {[%clk 0:00:32]}  Kf8 {[%clk 0:00:03]} 45. Rc5 {[%clk 0:00:31]}  Nd2+ {[%clk 0:00:03]} 46. Ke2 {[%clk 0:00:30]}  Nxe4 {[%clk 0:00:03]} 47. fxe4 {[%clk 0:00:31]}  Ra3 {[%clk 0:00:04]} 48. Rc2 {[%clk 0:00:31]}  Ke7 {[%clk 0:00:04]} 49. b5 {[%clk 0:00:29]} 1-0


[Site "https://www.chess.com"]

[Event "Titled Tuesday Blitz January 03 Late 2023"]
[White "Papasimakopoulos, Alexandros"]
[Black "Klose, Eli"]
[WhiteFideId "4244125"]
[BlackFideId "16242955"]
[WhiteElo "2401"]
[BlackElo "1519"]
[Result "1-0"]
[Round "07"]
[TimeControl "180+2"]
[Date "2023.01.03"]
[WhiteClock "0:01:10"]
[BlackClock "0:00:10"]

1. e4 {[%clk 0:02:56]}  e6 {[%clk 0:02:57]} 2. d4 {[%clk 0:02:54]}  d5 {[%clk 0:02:54]} 3. e5 {[%clk 0:02:55]}  c5 {[%clk 0:02:53]} 4. c3 {[%clk 0:02:55]}  Nc6 {[%clk 0:02:53]} 5. Nf3 {[%clk 0:02:56]}  Qb6 {[%clk 0:02:53]} 6. Bd3 {[%clk 0:02:56]}  Bd7 {[%clk 0:02:52]} 7. O-O {[%clk 0:02:56]}  cxd4 {[%clk 0:02:51]} 8. a3 {[%clk 0:02:57]}  a6 {[%clk 0:02:51]} 9. b4 {[%clk 0:02:57]}  Nh6 {[%clk 0:02:46]} 10. Bb2 {[%clk 0:02:55]}  Nf5 {[%clk 0:02:45]} 11. Bxf5 {[%clk 0:02:54]}  exf5 {[%clk 0:02:45]} 12. cxd4 {[%clk 0:02:54]}  Be6 {[%clk 0:02:40]} 13. Nc3 {[%clk 0:02:54]}  Be7 {[%clk 0:02:39]} 14. Na4 {[%clk 0:02:54]}  Qd8 {[%clk 0:02:29]} 15. Nc5 {[%clk 0:02:54]}  b6 {[%clk 0:02:24]} 16. Nxe6 {[%clk 0:02:54]}  fxe6 {[%clk 0:02:25]} 17. Rc1 {[%clk 0:02:54]}  Qd7 {[%clk 0:02:24]} 18. Qa4 {[%clk 0:02:54]}  b5 {[%clk 0:02:24]} 19. Qc2 {[%clk 0:02:49]}  Rc8 {[%clk 0:02:22]} 20. Qd2 {[%clk 0:02:50]}  O-O {[%clk 0:02:21]} 21. h4 {[%clk 0:02:48]}  Nb8 {[%clk 0:02:19]} 22. Qe2 {[%clk 0:02:40]}  Rc4 {[%clk 0:02:17]} 23. Nd2 {[%clk 0:02:38]}  Rc6 {[%clk 0:02:01]} 24. Nb3 {[%clk 0:02:38]}  Rc4 {[%clk 0:01:59]} 25. Na5 {[%clk 0:02:38]}  Rd8 {[%clk 0:01:42]} 26. Nxc4 {[%clk 0:02:35]}  dxc4 {[%clk 0:01:42]} 27. g3 {[%clk 0:02:35]}  Qd5 {[%clk 0:01:41]} 28. Rfd1 {[%clk 0:02:30]}  Nc6 {[%clk 0:01:41]} 29. Qf1 {[%clk 0:02:29]}  f4 {[%clk 0:01:16]} 30. Bc3 {[%clk 0:02:16]}  Rf8 {[%clk 0:01:13]} 31. Qg2 {[%clk 0:02:16]}  f3 {[%clk 0:00:49]} 32. Qh3 {[%clk 0:01:57]}  Rf5 {[%clk 0:00:46]} 33. Rd2 {[%clk 0:01:48]}  g5 {[%clk 0:00:44]} 34. hxg5 {[%clk 0:01:46]}  Bxg5 {[%clk 0:00:44]} 35. Qg4 {[%clk 0:01:43]}  Kh8 {[%clk 0:00:40]} 36. Qh5 {[%clk 0:01:39]}  Bxd2 {[%clk 0:00:31]} 37. Qe8+ {[%clk 0:01:39]}  Kg7 {[%clk 0:00:30]} 38. Bxd2 {[%clk 0:01:39]}  Nxd4 {[%clk 0:00:25]} 39. Qe7+ {[%clk 0:01:39]}  Rf7 {[%clk 0:00:17]} 40. Qg5+ {[%clk 0:01:31]}  Kf8 {[%clk 0:00:16]} 41. Be3 {[%clk 0:01:22]}  Ne2+ {[%clk 0:00:16]} 42. Kh2 {[%clk 0:01:20]}  Nxc1 {[%clk 0:00:12]} 43. Bc5+ {[%clk 0:01:20]}  Ke8 {[%clk 0:00:12]} 44. Qg8+ {[%clk 0:01:20]}  Kd7 {[%clk 0:00:12]} 45. Qxf7+ {[%clk 0:01:21]}  Kc8 {[%clk 0:00:13]} 46. Qg8+ {[%clk 0:01:20]}  Kb7 {[%clk 0:00:12]} 47. Qxh7+ {[%clk 0:01:21]}  Kc6 {[%clk 0:00:12]} 48. Qa7 {[%clk 0:01:13]}  Qxe5 {[%clk 0:00:10]} 49. Qxa6+ {[%clk 0:01:11]}  Kd5 {[%clk 0:00:10]} 50. Qb7# {[%clk 0:01:10]} 1-0


[Site "https://www.chess.com"]

[Event "Titled Tuesday Blitz January 03 Late 2023"]
[White "Cruz Mendez, Jean Marco"]
[Black "Jaferian, Koosha"]
[WhiteFideId "3526402"]
[BlackFideId "12507440"]
[WhiteElo "2270"]
[BlackElo "2233"]
[Result "1/2-1/2"]
[Round "07"]
[TimeControl "180+2"]
[Date "2023.01.03"]
[WhiteClock "0:00:19"]
[BlackClock "0:00:12"]

1. e4 {[%clk 0:03:00]}  e6 {[%clk 0:02:59]} 2. Qe2 {[%clk 0:02:58]}  c5 {[%clk 0:02:55]} 3. Nf3 {[%clk 0:02:58]}  Nc6 {[%clk 0:02:56]} 4. g3 {[%clk 0:02:58]}  g6 {[%clk 0:02:56]} 5. Bg2 {[%clk 0:02:59]}  Bg7 {[%clk 0:02:57]} 6. O-O {[%clk 0:02:59]}  Nge7 {[%clk 0:02:58]} 7. c3 {[%clk 0:03:00]}  O-O {[%clk 0:02:58]} 8. d3 {[%clk 0:02:59]}  d5 {[%clk 0:02:58]} 9. Nbd2 {[%clk 0:02:57]}  b6 {[%clk 0:02:58]} 10. Re1 {[%clk 0:02:56]}  Ba6 {[%clk 0:02:58]} 11. e5 {[%clk 0:02:56]}  Qc7 {[%clk 0:02:40]} 12. Nf1 {[%clk 0:02:56]}  b5 {[%clk 0:02:34]} 13. h4 {[%clk 0:02:53]}  b4 {[%clk 0:02:34]} 14. h5 {[%clk 0:02:54]}  gxh5 {[%clk 0:02:24]} 15. Bf4 {[%clk 0:02:47]}  Ng6 {[%clk 0:02:22]} 16. Rad1 {[%clk 0:02:28]}  Kh8 {[%clk 0:02:11]} 17. Ng5 {[%clk 0:02:27]}  h6 {[%clk 0:02:03]} 18. Qxh5 {[%clk 0:02:26]}  Ncxe5 {[%clk 0:01:40]} 19. Bxe5 {[%clk 0:01:19]}  Nxe5 {[%clk 0:01:37]} 20. d4 {[%clk 0:01:06]}  Bxf1 {[%clk 0:01:22]} 21. Bxf1 {[%clk 0:01:03]}  cxd4 {[%clk 0:01:22]} 22. cxd4 {[%clk 0:01:02]}  Nd7 {[%clk 0:01:13]} 23. Nxf7+ {[%clk 0:00:52]}  Kg8 {[%clk 0:00:38]} 24. Nxh6+ {[%clk 0:00:51]}  Bxh6 {[%clk 0:00:39]} 25. Qxh6 {[%clk 0:00:51]}  Rf6 {[%clk 0:00:39]} 26. Qg5+ {[%clk 0:00:50]}  Kf7 {[%clk 0:00:39]} 27. Qh5+ {[%clk 0:00:46]}  Kg7 {[%clk 0:00:38]} 28. Bh3 {[%clk 0:00:43]}  Nf8 {[%clk 0:00:28]} 29. Re5 {[%clk 0:00:37]}  Qc2 {[%clk 0:00:20]} 30. Rf1 {[%clk 0:00:28]}  Qxb2 {[%clk 0:00:15]} 31. Qg4+ {[%clk 0:00:25]}  Kf7 {[%clk 0:00:13]} 32. Qh5+ {[%clk 0:00:22]}  Kg7 {[%clk 0:00:12]} 33. Qg4+ {[%clk 0:00:18]}  Kf7 {[%clk 0:00:12]} 34. Qh5+ {[%clk 0:00:19]}  Kg7 {[%clk 0:00:12]} 1/2-1/2


[Site "https://www.chess.com"]

[Event "Titled Tuesday Blitz January 03 Late 2023"]
[White "Martinez Reyes, Pedro Ramon"]
[Black "Goltsev, Dmitry"]
[WhiteFideId "3901807"]
[BlackFideId "24176710"]
[WhiteElo "2376"]
[BlackElo "2269"]
[Result "0-1"]
[Round "07"]
[TimeControl "180+2"]
[Date "2023.01.03"]
[WhiteClock "0:01:31"]
[BlackClock "0:00:23"]

1. e4 {[%clk 0:02:38]}  e6 {[%clk 0:01:27]} 2. Nc3 {[%clk 0:02:35]}  d5 {[%clk 0:01:28]} 3. d4 {[%clk 0:02:34]}  c5 {[%clk 0:01:28]} 4. exd5 {[%clk 0:02:34]}  exd5 {[%clk 0:01:29]} 5. Nf3 {[%clk 0:02:35]}  Nf6 {[%clk 0:01:29]} 6. Bb5+ {[%clk 0:02:35]}  Nc6 {[%clk 0:01:30]} 7. O-O {[%clk 0:02:36]}  Be7 {[%clk 0:01:30]} 8. Re1 {[%clk 0:02:37]}  O-O {[%clk 0:01:30]} 9. dxc5 {[%clk 0:02:37]}  Bxc5 {[%clk 0:01:31]} 10. Bg5 {[%clk 0:02:37]}  Bg4 {[%clk 0:01:31]} 11. h3 {[%clk 0:02:33]}  Bh5 {[%clk 0:01:31]} 12. Bxf6 {[%clk 0:02:27]}  Qxf6 {[%clk 0:01:30]} 13. Nxd5 {[%clk 0:02:27]}  Qd6 {[%clk 0:01:24]} 14. Ne3 {[%clk 0:02:24]}  Qf4 {[%clk 0:01:20]} 15. Nd5 {[%clk 0:02:01]}  Qg3 {[%clk 0:01:10]} 16. Ne3 {[%clk 0:01:57]}  Bxf3 {[%clk 0:01:09]} 17. Qxf3 {[%clk 0:01:57]}  Qxf3 {[%clk 0:01:09]} 18. gxf3 {[%clk 0:01:57]}  Nd4 {[%clk 0:01:10]} 19. Be2 {[%clk 0:01:55]}  Rfe8 {[%clk 0:01:06]} 20. c3 {[%clk 0:01:54]}  Ne6 {[%clk 0:01:06]} 21. Bf1 {[%clk 0:01:49]}  Rad8 {[%clk 0:01:03]} 22. Rad1 {[%clk 0:01:47]}  Nf4 {[%clk 0:01:01]} 23. Rxd8 {[%clk 0:01:46]}  Rxd8 {[%clk 0:01:02]} 24. Rd1 {[%clk 0:01:46]}  Rxd1 {[%clk 0:00:59]} 25. Nxd1 {[%clk 0:01:47]}  Kf8 {[%clk 0:00:56]} 26. Ne3 {[%clk 0:01:48]}  g6 {[%clk 0:00:54]} 27. Kh2 {[%clk 0:01:48]}  f5 {[%clk 0:00:48]} 28. Kg1 {[%clk 0:01:47]}  Ke7 {[%clk 0:00:47]} 29. h4 {[%clk 0:01:45]}  Kd7 {[%clk 0:00:46]} 30. Ng2 {[%clk 0:01:44]}  Nh3+ {[%clk 0:00:44]} 31. Kh2 {[%clk 0:01:45]}  Nxf2 {[%clk 0:00:43]} 32. Bc4 {[%clk 0:01:45]}  Nd1 {[%clk 0:00:41]} 33. Bg8 {[%clk 0:01:42]}  Ke7 {[%clk 0:00:33]} 34. Bxh7 {[%clk 0:01:40]}  Kf7 {[%clk 0:00:34]} 35. h5 {[%clk 0:01:40]}  gxh5 {[%clk 0:00:34]} 36. Bxf5 {[%clk 0:01:41]}  Nxb2 {[%clk 0:00:35]} 37. Be4 {[%clk 0:01:41]}  b6 {[%clk 0:00:29]} 38. Kh3 {[%clk 0:01:41]}  Nd1 {[%clk 0:00:27]} 39. c4 {[%clk 0:01:41]}  Nc3 {[%clk 0:00:26]} 40. Nf4 {[%clk 0:01:39]}  Nxa2 {[%clk 0:00:25]} 41. Nxh5 {[%clk 0:01:39]}  Nc3 {[%clk 0:00:26]} 42. Bc2 {[%clk 0:01:33]}  a5 {[%clk 0:00:26]} 43. Nf4 {[%clk 0:01:33]}  a4 {[%clk 0:00:20]} 44. Nd5 {[%clk 0:01:28]}  Nxd5 {[%clk 0:00:20]} 45. cxd5 {[%clk 0:01:29]}  a3 {[%clk 0:00:21]} 46. Bb3 {[%clk 0:01:29]}  Kf6 {[%clk 0:00:22]} 47. Kg4 {[%clk 0:01:29]}  Ke5 {[%clk 0:00:22]} 48. f4+ {[%clk 0:01:29]}  Kd4 {[%clk 0:00:23]} 49. f5 {[%clk 0:01:30]}  Kc3 {[%clk 0:00:23]} 50. Ba2 {[%clk 0:01:30]}  Kb2 {[%clk 0:00:23]} 51. Bc4 {[%clk 0:01:30]}  b5 {[%clk 0:00:23]} 52. f6 {[%clk 0:01:29]}  bxc4 {[%clk 0:00:23]} 53. f7 {[%clk 0:01:30]}  a2 {[%clk 0:00:22]} 54. d6 {[%clk 0:01:31]}  Bxd6 {[%clk 0:00:23]} 55. f8=Q {[%clk 0:01:31]}  Bxf8 {[%clk 0:00:23]} 0-1


[Site "https://www.chess.com"]

[Event "Titled Tuesday Blitz January 03 Late 2023"]
[White "Adewumi, Tanitoluwa"]
[Black "Skvortsov, Andrei"]
[WhiteFideId "30966396"]
[BlackFideId "24108600"]
[WhiteElo "2283"]
[BlackElo "2313"]
[Result "1-0"]
[Round "07"]
[TimeControl "180+2"]
[Date "2023.01.03"]
[WhiteClock "0:00:04"]
[BlackClock "0:00:41"]

1. e4 {[%clk 0:02:46]}  c5 {[%clk 0:03:00]} 2. Nf3 {[%clk 0:02:42]}  d6 {[%clk 0:03:00]} 3. Bb5+ {[%clk 0:02:41]}  Bd7 {[%clk 0:02:57]} 4. Bxd7+ {[%clk 0:02:40]}  Qxd7 {[%clk 0:02:57]} 5. c4 {[%clk 0:02:40]}  Nc6 {[%clk 0:02:49]} 6. Nc3 {[%clk 0:02:37]}  g6 {[%clk 0:02:48]} 7. d4 {[%clk 0:02:35]}  Qg4 {[%clk 0:02:42]} 8. d5 {[%clk 0:02:04]}  Nb8 {[%clk 0:02:37]} 9. h3 {[%clk 0:01:55]}  Qc8 {[%clk 0:02:33]} 10. O-O {[%clk 0:01:52]}  Bg7 {[%clk 0:02:33]} 11. Re1 {[%clk 0:01:52]}  Nd7 {[%clk 0:02:33]} 12. Bf4 {[%clk 0:01:52]}  Ngf6 {[%clk 0:02:32]} 13. e5 {[%clk 0:01:52]}  dxe5 {[%clk 0:02:32]} 14. Nxe5 {[%clk 0:01:52]}  O-O {[%clk 0:02:32]} 15. Qe2 {[%clk 0:01:38]}  Nxe5 {[%clk 0:02:31]} 16. Bxe5 {[%clk 0:01:36]}  Re8 {[%clk 0:02:26]} 17. Rad1 {[%clk 0:01:32]}  Qf5 {[%clk 0:02:21]} 18. g3 {[%clk 0:01:25]}  Qxh3 {[%clk 0:02:19]} 19. Qf3 {[%clk 0:01:13]}  b6 {[%clk 0:01:54]} 20. Nb5 {[%clk 0:00:31]}  Rf8 {[%clk 0:01:44]} 21. d6 {[%clk 0:00:28]}  Ng4 {[%clk 0:01:13]} 22. Bxg7 {[%clk 0:00:25]}  Qh2+ {[%clk 0:01:11]} 23. Kf1 {[%clk 0:00:25]}  Qh3+ {[%clk 0:01:10]} 24. Qg2 {[%clk 0:00:18]}  Qxg2+ {[%clk 0:01:10]} 25. Kxg2 {[%clk 0:00:18]}  Kxg7 {[%clk 0:01:10]} 26. dxe7 {[%clk 0:00:19]}  Rfc8 {[%clk 0:01:11]} 27. Nd6 {[%clk 0:00:15]}  Re8 {[%clk 0:01:07]} 28. Nxe8+ {[%clk 0:00:14]}  Rxe8 {[%clk 0:01:07]} 29. Rd8 {[%clk 0:00:15]}  Nf6 {[%clk 0:01:06]} 30. g4 {[%clk 0:00:13]}  g5 {[%clk 0:01:04]} 31. f4 {[%clk 0:00:13]}  h6 {[%clk 0:01:04]} 32. fxg5 {[%clk 0:00:13]}  hxg5 {[%clk 0:01:05]} 33. Kf3 {[%clk 0:00:11]}  Kg6 {[%clk 0:01:04]} 34. Re5 {[%clk 0:00:11]}  a5 {[%clk 0:00:57]} 35. a4 {[%clk 0:00:11]}  Kh7 {[%clk 0:00:51]} 36. Rd6 {[%clk 0:00:08]}  Ng8 {[%clk 0:00:47]} 37. Rd7 {[%clk 0:00:08]}  Kg6 {[%clk 0:00:44]} 38. Rd6+ {[%clk 0:00:04]}  f6 {[%clk 0:00:44]} 39. Ree6 {[%clk 0:00:03]}  Kf7 {[%clk 0:00:41]} 40. Rxb6 {[%clk 0:00:03]}  Rxe7 {[%clk 0:00:36]} 41. Rxe7+ {[%clk 0:00:03]}  Nxe7 {[%clk 0:00:37]} 42. Ra6 {[%clk 0:00:03]}  Ng6 {[%clk 0:00:38]} 43. Ke4 {[%clk 0:00:02]}  Ne5 {[%clk 0:00:39]} 44. b3 {[%clk 0:00:02]}  Nxc4 {[%clk 0:00:40]} 45. bxc4 {[%clk 0:00:02]}  Kg6 {[%clk 0:00:39]} 46. Kd5 {[%clk 0:00:02]}  Kf7 {[%clk 0:00:40]} 47. Ke4 {[%clk 0:00:02]}  Kg6 {[%clk 0:00:41]} 48. Rxa5 {[%clk 0:00:03]}  f5+ {[%clk 0:00:41]} 49. gxf5+ {[%clk 0:00:04]} 1-0


[Site "https://www.chess.com"]

[Event "Titled Tuesday Blitz January 03 Late 2023"]
[White "Leiva, Gianmarco"]
[Black "Ansh M Shah"]
[WhiteFideId "3804399"]
[BlackFideId "25033379"]
[WhiteElo "2392"]
[BlackElo "2171"]
[Result "1-0"]
[Round "07"]
[TimeControl "180+2"]
[Date "2023.01.03"]
[WhiteClock "0:01:20"]
[BlackClock "0:01:45"]

1. e4 {[%clk 0:02:57]}  c6 {[%clk 0:03:00]} 2. d4 {[%clk 0:02:57]}  d5 {[%clk 0:03:01]} 3. e5 {[%clk 0:02:58]}  Bf5 {[%clk 0:03:01]} 4. h4 {[%clk 0:02:55]}  h5 {[%clk 0:03:00]} 5. Bd3 {[%clk 0:02:53]}  Bxd3 {[%clk 0:02:59]} 6. Qxd3 {[%clk 0:02:54]}  e6 {[%clk 0:02:59]} 7. Bg5 {[%clk 0:02:55]}  Qa5+ {[%clk 0:02:59]} 8. Nd2 {[%clk 0:02:53]}  Qa6 {[%clk 0:03:00]} 9. Qf3 {[%clk 0:02:52]}  Be7 {[%clk 0:02:59]} 10. Ne2 {[%clk 0:02:50]}  Nh6 {[%clk 0:02:59]} 11. Bxe7 {[%clk 0:02:48]}  Kxe7 {[%clk 0:02:58]} 12. Qxh5 {[%clk 0:02:48]}  Nd7 {[%clk 0:02:54]} 13. Qg5+ {[%clk 0:02:40]}  Kf8 {[%clk 0:02:54]} 14. Rh3 {[%clk 0:02:38]}  Nf5 {[%clk 0:02:54]} 15. g4 {[%clk 0:02:38]}  Nh6 {[%clk 0:02:25]} 16. Rf3 {[%clk 0:02:37]}  Qb6 {[%clk 0:02:24]} 17. O-O-O {[%clk 0:02:37]}  Qa6 {[%clk 0:02:19]} 18. Nf4 {[%clk 0:02:35]}  c5 {[%clk 0:02:14]} 19. Ng6+ {[%clk 0:02:05]}  Kg8 {[%clk 0:02:13]} 20. Nxh8 {[%clk 0:02:06]}  Kxh8 {[%clk 0:02:12]} 21. Qe7 {[%clk 0:01:47]}  Nf8 {[%clk 0:02:06]} 22. Rg1 {[%clk 0:01:39]}  Ng6 {[%clk 0:02:05]} 23. Qxc5 {[%clk 0:01:37]}  Nxh4 {[%clk 0:02:04]} 24. Rh3 {[%clk 0:01:36]}  Ng6 {[%clk 0:02:05]} 25. g5 {[%clk 0:01:36]}  b6 {[%clk 0:02:04]} 26. Qa3 {[%clk 0:01:35]}  Qe2 {[%clk 0:02:02]} 27. Qe3 {[%clk 0:01:20]}  Qa6 {[%clk 0:01:51]} 28. gxh6 {[%clk 0:01:20]}  Qxa2 {[%clk 0:01:44]} 29. hxg7+ {[%clk 0:01:20]}  Kxg7 {[%clk 0:01:44]} 30. Qh6+ {[%clk 0:01:20]}  Kg8 {[%clk 0:01:45]} 31. Qh8# {[%clk 0:01:20]} 1-0


[Site "https://www.chess.com"]